bitfinex/quotes_BTCUSD_20260104
["timestamp","ask_amount","ask_price","bid_price","bid_amount"]
[1767513760743,0.06571314,91306.0,91303.0,0.00063805]
[1767513760921,0.01095218,91306.0,91303.0,0.04961595]
[1767513761357,0.01899069,91303.0,91295.0,0.04961595]
[1767513761589,0.11826674,91298.0,91295.0,0.04961595]
[1767513761713,0.11817899,91298.0,91295.0,0.06056945]
[1767513761920,0.11717999,91298.0,91295.0,0.06056945]
[1767513762315,0.11717999,91298.0,91291.0,0.01095398]
[1767513762316,0.05476828,91294.0,91288.0,0.07176795]
[1767513762519,0.01095374,91293.0,91289.0,0.04221939]
[1767513762778,0.000999,91295.0,91289.0,0.04221939]
[1767513763070,0.01095338,91296.0,91290.0,0.0109541]
[1767513763296,0.01095326,91297.0,91291.0,0.06056993]
[1767513763491,0.01095326,91297.0,91288.0,0.03310634]
[1767513763492,0.01195298,91291.0,91288.0,0.000152]
[1767513763695,0.01195298,91291.0,91279.0,0.01099578]
[1767513763696,0.01095434,91288.0,91279.0,4.036e-05]
[1767513763977,0.022,91289.0,91284.0,0.06057077]
[1767513764183,0.03188101,91289.0,91284.0,0.04961595]
[1767513764390,0.0866526,91289.0,91284.0,0.06057077]
[1767513764593,0.0866526,91289.0,91284.0,0.04961595]
[1767513765084,0.02092679,91289.0,91284.0,0.06057077]
[1767513765442,0.03188101,91289.0,91284.0,0.04961595]
[1767513766134,0.02092679,91289.0,91284.0,0.06057077]
[1767513766331,0.02092679,91289.0,91288.0,0.00071013]
[1767513766590,0.00070995,91288.0,91285.0,0.06057065]
[1767513766997,0.02354004,91287.0,91286.0,0.04961595]
[1767513767204,0.03188101,91289.0,91282.0,0.06572995]
[1767513767358,0.0109547,91285.0,91279.0,0.05001807]
[1767513767582,0.18399569,91284.0,91279.0,0.05001807]
[1767513767789,0.12922156,91284.0,91279.0,0.05001807]
[1767513767988,0.01095494,91283.0,91279.0,0.05001807]
[1767513768214,0.12922156,91284.0,91279.0,0.06097349]
[1767513768384,0.0115523,91279.0,91272.0,0.04961595]
[1767513768591,0.00059688,91279.0,91272.0,0.04972439]
[1767513769010,0.01095494,91283.0,91277.0,0.04961595]
[1767513769210,0.11826674,91284.0,91279.0,0.04961595]
[1767513769459,0.01095434,91288.0,91279.0,0.04961595]
[1767513769460,0.01095446,91287.0,91282.0,0.06057101]
[1767513769724,0.01095446,91287.0,91284.0,0.000402]
[1767513770330,0.01095446,91287.0,91282.0,0.04961595]
[1767513770546,0.01086672,91287.0,91282.0,0.04961595]
[1767513770750,0.01077898,91287.0,91282.0,0.06057101]
[1767513771287,0.01037698,91287.0,91282.0,0.04961595]
[1767513771805,0.01037698,91287.0,91281.0,0.06573106]
[1767513771806,0.0651495,91287.0,91281.0,0.01095518]
[1767513772001,0.01037698,91287.0,91282.0,0.01095506]
[1767513772201,0.000999,91282.0,91279.0,0.01095542]
[1767513772403,0.000999,91282.0,91278.0,0.04961595]
[1767513772740,0.01095494,91283.0,91278.0,0.06057149]
[1767513772892,0.01095482,91284.0,91278.0,0.11534916]
[1767513773094,0.01095482,91284.0,91278.0,0.06573322]
[1767513773293,0.01095446,91287.0,91279.0,0.05477657]
[1767513773498,0.01095458,91286.0,91280.0,0.05477596]
[1767513773698,0.0109547,91285.0,91280.0,0.0109553]
[1767513773930,0.05477366,91285.0,91278.0,0.06057149]
[1767513774144,0.05477366,91285.0,91279.0,0.06057137]
[1767513774145,0.01095482,91284.0,91279.0,0.06057137]
[1767513774508,0.000999,91280.0,91277.0,0.06057161]
[1767513774692,0.01095494,91283.0,91277.0,0.04961595]
[1767513774693,0.01095518,91281.0,91277.0,0.04961595]
[1767513774872,0.21907608,91293.0,91277.0,0.04961595]
[1767513775074,0.06572841,91285.0,91279.0,0.01095542]
[1767513775273,0.01095482,91284.0,91278.0,0.01095554]
[1767513775473,0.01095518,91281.0,91277.0,0.04961595]
[1767513775676,0.06573053,91282.0,91277.0,0.01095566]
[1767513775881,0.01095506,91282.0,91276.0,0.08773458]
[1767513776064,0.06573019,91283.0,91277.0,0.01095566]
[1767513776260,0.01095446,91287.0,91277.0,0.01095566]
[1767513776481,0.01095494,91283.0,91277.0,0.01095566]
[1767513776645,0.01095494,91283.0,91277.0,0.11534971]
[1767513776843,0.0547755,91282.0,91276.0,0.03295578]
[1767513777081,0.01095494,91283.0,91278.0,0.01095554]
[1767513777261,0.01095494,91283.0,91277.0,0.01095566]
[1767513777666,0.01095494,91283.0,91278.0,0.01095554]
[1767513777870,0.06572977,91283.0,91277.0,0.01095566]
[1767513778066,0.01095506,91282.0,91277.0,0.01095566]
[1767513778290,0.01095482,91284.0,91278.0,0.01095554]
[1767513778492,0.0547656,91299.0,91293.0,0.04961595]
[1767513778669,0.05476564,91299.0,91293.0,0.06056969]
[1767513778886,0.01095314,91298.0,91293.0,0.06056969]
[1767513779086,0.01095266,91302.0,91295.0,0.05476733]
[1767513779265,0.06571716,91302.0,91295.0,0.0547674]
[1767513779638,0.06571743,91300.0,91294.0,0.04961595]
[1767513779917,0.0109529,91300.0,91294.0,0.06056957]
[1767513780122,0.01095278,91301.0,91296.0,0.01095338]
[1767513780267,0.02195237,91296.0,91290.0,0.06572452]
[1767513780468,0.01099899,91296.0,91291.0,0.01095398]
[1767513780673,0.01099899,91296.0,91292.0,0.01095386]
[1767513780913,0.06571939,91298.0,91292.0,0.01095386]
[1767513781087,0.01095338,91296.0,91291.0,0.01095398]
[1767513781297,0.01095326,91297.0,91290.0,0.06572443]
[1767513781486,0.01095374,91293.0,91287.0,0.02196]
[1767513781687,0.06572822,91285.0,91279.0,0.01095542]
[1767513781974,0.01095458,91286.0,91280.0,0.022]
[1767513782195,0.12922144,91285.0,91280.0,0.022]
[1767513782394,0.00988173,91283.0,91280.0,0.022]
[1767513782602,0.06573067,91282.0,91276.0,0.022]
[1767513782853,0.000999,91280.0,91276.0,0.03295578]
[1767513783043,0.000999,91280.0,91277.0,0.01095566]
[1767513783187,0.06465654,91283.0,91276.0,0.08773426]
[1767513783188,0.01095506,91282.0,91276.0,0.0803383]
[1767513783391,0.06465654,91283.0,91277.0,0.01095566]
[1767513784430,0.01095518,91281.0,91276.0,0.01460404]
[1767513784633,0.01095494,91283.0,91278.0,0.01095554]
[1767513784831,0.06572976,91283.0,91282.0,0.00051749]
[1767513785058,0.000517,91282.0,91276.0,0.08033851]
[1767513785236,0.000517,91282.0,91276.0,0.01460404]
[1767513785437,0.01095518,91281.0,91276.0,0.00860404]
[1767513785756,0.0109553,91280.0,91276.0,0.00860404]
[1767513786109,0.01095542,91279.0,91276.0,0.00812204]
[1767513786795,0.01095518,91281.0,91279.0,0.000999]
[1767513786796,0.06573111,91281.0,91279.0,0.000999]
[1767513787007,0.0109553,91280.0,91276.0,0.00812204]
[1767513787176,0.06573111,91281.0,91276.0,0.00812204]
[1767513787350,0.0109553,91280.0,91276.0,0.00812204]
[1767513787551,0.11826674,91285.0,91280.0,0.000999]
[1767513787753,0.06473012,91284.0,91280.0,0.000999]
[1767513787933,0.10589031,91285.0,91281.0,0.01095518]
[1767513788134,0.01095482,91284.0,91276.0,0.05683513]
[1767513788334,0.24108582,91289.0,91276.0,0.00812204]
[1767513788335,0.01095518,91281.0,91276.0,0.00812204]
[1767513788675,0.0109553,91280.0,91276.0,0.00812204]
[1767513789087,0.01095542,91279.0,91276.0,0.00812204]
[1767513789510,0.06573275,91279.0,91276.0,0.00812204]
[1767513789707,0.01095518,91281.0,91276.0,0.01907782]
[1767513790011,0.0109553,91280.0,91276.0,0.00812204]
[1767513790311,0.0109553,91280.0,91276.0,0.00612404]
[1767513790312,0.06573199,91280.0,91276.0,0.00612404]
[1767513790509,0.04581533,91278.0,91270.0,0.000152]
[1767513790676,0.0109553,91280.0,91270.0,0.00022328]
[1767513790677,0.0109559,91275.0,91270.0,0.00022328]
[1767513790874,0.01095578,91276.0,91271.0,0.01095638]
[1767513791094,0.01095566,91277.0,91271.0,0.01095638]
[1767513791293,0.06573335,91278.0,91273.0,0.01095614]
[1767513791455,0.01095566,91277.0,91272.0,0.01095626]
[1767513791656,0.01095554,91278.0,91271.0,0.0657382]
[1767513791884,0.01095578,91276.0,91270.0,0.00022328]
[1767513792117,0.0109559,91275.0,91270.0,0.00022328]
[1767513792410,0.06573486,91276.0,91270.0,0.01117978]
[1767513792613,0.0109559,91275.0,91270.0,0.00022328]
[1767513792856,0.0109559,91275.0,91270.0,0.01109159]
[1767513793064,0.0109559,91275.0,91269.0,0.0657396]
[1767513793203,0.0109559,91275.0,91270.0,0.0109565]
[1767513793405,0.06573424,91277.0,91275.0,0.00099949]
[1767513793628,0.01095566,91277.0,91275.0,0.00099949]
[1767513793810,0.01095506,91282.0,91275.0,0.00099949]
[1767513794008,0.06573038,91282.0,91275.0,0.0667344]
[1767513794207,0.11826674,91283.0,91280.0,0.0109553]
[1767513794431,0.05477549,91282.0,91275.0,0.01195539]
[1767513794607,0.01095518,91281.0,91275.0,0.01195539]
[1767513794812,0.01120427,91280.0,91275.0,0.00099949]
[1767513795343,0.01120427,91280.0,91275.0,0.04971258]
[1767513795693,0.06573263,91279.0,91275.0,0.04971258]
[1767513795899,0.06573331,91278.0,91272.0,0.05478117]
[1767513796455,0.01095554,91278.0,91272.0,0.06573743]
[1767513796693,0.01120427,91280.0,91273.0,0.05478071]
[1767513796694,0.05502551,91280.0,91273.0,0.05478071]
[1767513797044,0.01095542,91279.0,91273.0,0.06573685]
[1767513797227,0.06573261,91279.0,91273.0,0.01095614]
[1767513797430,0.01095566,91277.0,91266.0,0.08163007]
[1767513797634,0.000999,91273.0,91269.0,0.06573921]
[1767513797834,0.05477943,91276.0,91269.0,0.06573921]
[1767513797835,0.06573521,91276.0,91269.0,0.06573921]
[1767513798229,0.01095638,91271.0,91266.0,0.03291698]
[1767513798427,0.01095638,91271.0,91266.0,0.02196]
[1767513798684,0.0109565,91270.0,91266.0,0.02196]
[1767513798880,0.01095614,91273.0,91267.0,0.06574106]
[1767513799091,0.01095578,91276.0,91269.0,0.01095662]
[1767513799303,0.01095578,91276.0,91270.0,0.0109565]
[1767513799443,0.06573435,91277.0,91272.0,0.01095626]
[1767513799844,0.00999951,91272.0,91270.0,0.0109565]
[1767513800098,0.000999,91272.0,91267.0,0.06574107]
[1767513800301,0.12922336,91269.0,91266.0,0.01596]
[1767513800506,0.12922336,91269.0,91258.0,0.01095794]
[1767513800507,0.01095734,91263.0,91258.0,0.01095794]
[1767513800701,0.02495614,91267.0,91259.0,0.01095782]
[1767513800702,0.0109571,91265.0,91259.0,0.01095782]
[1767513800905,0.0109571,91265.0,91260.0,0.0109577]
[1767513801064,0.0547853,91266.0,91261.0,0.01095758]
[1767513801065,0.01095698,91266.0,91261.0,0.01095758]
[1767513801265,0.000999,91261.0,91258.0,0.01095794]
[1767513801488,0.0109571,91265.0,91258.0,0.01095794]
[1767513801489,0.0109571,91265.0,91260.0,0.0109577]
[1767513801691,0.0657427,91265.0,91260.0,0.0109577]
[1767513801892,0.01095722,91264.0,91259.0,0.06574668]
[1767513802067,0.00995451,91259.0,91253.0,0.01095854]
[1767513802271,0.00995451,91259.0,91246.0,0.21918733]
[1767513802272,0.04291233,91259.0,91246.0,0.01095938]
[1767513802468,0.0109583,91255.0,91250.0,0.0109589]
[1767513802654,0.0109583,91255.0,91250.0,0.06575317]
[1767513802655,0.11826674,91255.0,91250.0,0.06575317]
[1767513802855,0.11826674,91255.0,91251.0,0.01095878]
[1767513803058,0.11826674,91255.0,91250.0,0.0109589]
[1767513803254,0.18401657,91255.0,91249.0,0.06575363]
[1767513803455,0.11826674,91255.0,91250.0,0.0109589]
[1767513803660,0.12922504,91255.0,91250.0,0.06575341]
[1767513804055,0.18401659,91255.0,91249.0,0.01095902]
[1767513804247,0.06575113,91254.0,91246.0,0.06575592]
[1767513804436,0.000802,91249.0,91248.0,0.01095914]
[1767513804635,0.000802,91249.0,91243.0,0.05967283]
[1767513804837,0.00900051,91248.0,91245.0,0.0049595]
[1767513805044,0.00880351,91248.0,91244.0,0.04871309]
[1767513805265,0.01095938,91246.0,91241.0,0.04871309]
[1767513805411,0.05479582,91248.0,91242.0,0.01095986]
[1767513805814,0.06575496,91248.0,91242.0,0.06575902]
[1767513806023,0.06575496,91248.0,91242.0,0.04871309]
[1767513806024,0.05479694,91246.0,91242.0,0.04871309]
[1767513806241,0.01095926,91247.0,91242.0,0.05967295]
[1767513806579,0.01095938,91246.0,91242.0,0.04871309]
[1767513806776,0.0109595,91245.0,91242.0,0.04871309]
[1767513806943,0.05479762,91245.0,91240.0,0.0109601]
[1767513807278,0.01095938,91246.0,91241.0,0.05967307]
[1767513807475,0.05479568,91249.0,91242.0,0.04871309]
[1767513807642,0.0657547,91249.0,91243.0,0.01095974]
[1767513808065,0.0109577,91260.0,91253.0,0.01095854]
[1767513808243,0.01095794,91258.0,91255.0,0.04871309]
[1767513808446,0.01095782,91259.0,91255.0,0.04871309]
[1767513808647,0.01095794,91258.0,91255.0,0.04871309]
[1767513808846,0.06574711,91259.0,91253.0,0.01095854]
[1767513809046,0.01095794,91258.0,91253.0,0.05967163]
[1767513809269,0.01095806,91257.0,91253.0,0.04871309]
[1767513809649,0.01095806,91257.0,91245.0,0.24119009]
[1767513809650,0.01095866,91252.0,91248.0,0.04871309]
[1767513809870,0.06575212,91252.0,91248.0,0.04871309]
[1767513810470,0.01095878,91251.0,91248.0,0.04871309]
[1767513810666,0.06575212,91252.0,91248.0,0.04871309]
[1767513810874,0.01095842,91254.0,91249.0,0.10326843]
[1767513811072,0.01095842,91254.0,91250.0,0.04847334]
[1767513811552,0.06575185,91253.0,91250.0,0.04747434]
[1767513811767,0.01095878,91251.0,91247.0,0.04847334]
[1767513811972,0.02212034,91247.0,91243.0,0.0108394]
[1767513812310,0.01095914,91248.0,91243.0,0.01095974]
[1767513812695,0.06575423,91249.0,91243.0,0.06575843]
[1767513813113,0.01095914,91248.0,91243.0,0.06575843]
[1767513813290,0.01095914,91248.0,91243.0,0.01095974]
[1767513813901,0.01095926,91247.0,91242.0,0.01095986]
[1767513814119,0.06575508,91248.0,91243.0,0.01095974]
[1767513814321,0.06575508,91248.0,91247.0,0.000999]
[1767513814542,0.06575508,91248.0,91247.0,0.00095514]
[1767513814781,0.06575508,91248.0,91243.0,0.01095974]
[1767513815081,0.01095914,91248.0,91243.0,0.06575841]
[1767513815677,0.01095914,91248.0,91244.0,0.04672507]
[1767513815995,0.06575612,91247.0,91244.0,0.04672507]
[1767513816310,0.01095875,91244.0,91242.0,0.04672507]
[1767513816467,0.06575752,91245.0,91242.0,0.04672507]
[1767513816631,0.06575752,91245.0,91237.0,0.05480226]
[1767513816632,0.06575798,91244.0,91237.0,0.05768553]
[1767513816827,0.06575798,91244.0,91238.0,0.01096034]
[1767513817079,0.01095974,91243.0,91238.0,0.04672507]
[1767513817282,0.01095998,91241.0,91236.0,0.11248798]
[1767513817580,0.0099611,91240.0,91236.0,0.04672507]
[1767513818092,0.01095974,91243.0,91240.0,0.00996109]
[1767513818298,0.11826674,91241.0,91240.0,0.00996109]
[1767513818589,0.17306666,91241.0,91234.0,0.00023065]
[1767513818786,0.01096046,91237.0,91234.0,0.00023065]
[1767513818988,0.01096058,91236.0,91233.0,0.04672507]
[1767513819219,0.01096118,91231.0,91224.0,0.022]
[1767513819444,0.0109613,91230.0,91225.0,0.11249596]
[1767513819613,0.06676484,91233.0,91230.0,0.000999]
[1767513820016,0.000999,91233.0,91230.0,0.10153159]
[1767513820232,0.0109607,91235.0,91229.0,0.01096142]
[1767513820525,0.01096094,91233.0,91228.0,0.11249418]
[1767513820726,0.01096094,91233.0,91228.0,0.05768661]
[1767513820936,0.01096022,91239.0,91225.0,0.05480938]
[1767513820937,0.00017978,91240.0,91238.0,0.04672507]
[1767513821159,0.00017978,91240.0,91220.0,0.19801332]
[1767513821160,0.0008904,91238.0,91233.0,0.05672507]
[1767513821278,0.01195908,91238.0,91233.0,0.05672507]
[1767513821479,0.00010834,91238.0,91234.0,0.01096082]
[1767513821716,0.00010834,91238.0,91235.0,0.0109607]
[1767513821916,0.00010834,91238.0,91235.0,0.05768577]
[1767513822432,0.00010834,91238.0,91235.0,0.04672507]
[1767513822637,0.00010834,91238.0,91235.0,0.05768577]
[1767513822941,3.4e-07,91238.0,91235.0,0.05768577]
[1767513823136,0.01096068,91238.0,91233.0,0.04672507]
[1767513823364,0.01096058,91236.0,91233.0,0.04672507]
[1767513823576,0.06576292,91237.0,91233.0,0.04672507]
[1767513823882,0.01096046,91237.0,91233.0,0.04672507]
[1767513824027,0.06576251,91238.0,91233.0,0.05768601]
[1767513824367,0.06576251,91238.0,91233.0,0.01096094]
[1767513824542,0.01096046,91237.0,91232.0,0.01096106]
[1767513824743,0.06576251,91238.0,91229.0,0.01096142]
[1767513824744,0.000999,91232.0,91229.0,0.01096142]
[1767513824920,1e-08,91232.0,91231.0,0.101531]
[1767513825125,0.05480376,91235.0,91233.0,0.00900099]
[1767513825368,0.06576361,91236.0,91233.0,0.00900099]
[1767513825517,0.06576361,91236.0,91231.0,0.05768625]
[1767513825718,0.01096082,91234.0,91226.0,0.11249525]
[1767513825918,0.01096094,91233.0,91226.0,0.05768685]
[1767513826121,0.01096094,91233.0,91226.0,0.04672507]
[1767513826429,0.0109613,91230.0,91226.0,0.04672507]
[1767513826658,0.01096142,91229.0,91226.0,0.04672507]
[1767513827015,0.06576859,91229.0,91226.0,0.04668121]
[1767513827226,0.01096154,91228.0,91223.0,0.05768721]
[1767513827535,0.01096166,91227.0,91223.0,0.04672507]
[1767513827760,0.00996254,91228.0,91223.0,0.05768721]
[1767513827959,0.05480647,91231.0,91218.0,0.04672507]
[1767513827960,0.000999,91223.0,91218.0,0.04672507]
[1767513828161,0.000999,91223.0,91220.0,0.04672507]
[1767513828336,0.01096202,91224.0,91220.0,0.04672507]
[1767513828535,0.01096166,91227.0,91222.0,0.04672507]
[1767513828743,0.01096142,91229.0,91222.0,0.05768733]
[1767513828938,0.01096166,91227.0,91220.0,0.0109625]
[1767513829123,0.01096166,91227.0,91185.0,0.07847868]
[1767513829124,0.01096274,91218.0,91212.0,0.04672507]
[1767513829331,0.0548136,91219.0,91212.0,0.04650488]
[1767513829531,0.0119615,91220.0,91214.0,0.01096322]
[1767513829836,0.022,91221.0,91217.0,0.01096286]
[1767513830032,0.01096082,91234.0,91228.0,1e-08]
[1767513830273,0.01096118,91231.0,91228.0,1e-08]
[1767513830506,0.05480674,91230.0,91228.0,1e-08]
[1767513830729,0.01096274,91218.0,91213.0,0.01096334]
[1767513830930,0.01096238,91221.0,91216.0,0.01096298]
[1767513831071,0.04739429,91222.0,91201.0,0.32894239]
[1767513831272,0.03296214,91223.0,91220.0,0.04672507]
[1767513831506,0.03296214,91223.0,91219.0,0.01096262]
[1767513831507,0.022,91223.0,91219.0,0.01096262]
[1767513831712,0.01096166,91227.0,91223.0,0.01096214]
[1767513831870,0.0109607,91235.0,91226.0,0.01096178]
[1767513832072,0.06576159,91239.0,91233.0,0.01096094]
[1767513832425,0.00017978,91240.0,91237.0,0.04672507]
[1767513832733,0.00017978,91240.0,91236.0,0.05480292]
[1767513832734,0.01095902,91249.0,91244.0,0.05479772]
[1767513832878,0.0109589,91250.0,91244.0,0.04672507]
[1767513833076,0.0109589,91250.0,91244.0,0.04572607]
[1767513833077,0.01095914,91248.0,91244.0,0.04572607]
[1767513833388,0.01095842,91254.0,91246.0,0.01095938]
[1767513833611,0.01095854,91253.0,91246.0,0.06575609]
[1767513833823,0.01095854,91253.0,91247.0,0.01095926]
[1767513833824,0.01095866,91252.0,91247.0,0.01095926]
[1767513833991,0.01095866,91252.0,91248.0,0.04672507]
[1767513833992,0.03295866,91252.0,91248.0,0.04672507]
[1767513834191,0.11826674,91255.0,91251.0,0.04672507]
[1767513834375,0.022,91254.0,91252.0,0.000999]
[1767513834588,0.0657494,91256.0,91249.0,0.01095902]
[1767513834589,0.00099899,91252.0,91251.0,0.04672507]
[1767513834794,0.14026674,91254.0,91251.0,0.04672507]
[1767513835275,0.14026674,91254.0,91251.0,0.05768385]
[1767513835477,0.000999,91251.0,91249.0,0.01095902]
[1767513835612,0.000999,91251.0,91246.0,0.04672507]
[1767513835613,0.01195778,91251.0,91246.0,0.04672507]
[1767513835804,0.01000001,91249.0,91246.0,0.05479683]
[1767513836004,0.01000001,91249.0,91247.0,0.05479604]
[1767513836205,0.06575169,91253.0,91248.0,0.01095914]
[1767513836400,0.01095866,91252.0,91247.0,0.01095926]
[1767513836607,0.11826674,91254.0,91249.0,0.01095902]
[1767513836841,0.12922516,91254.0,91248.0,0.01095914]
[1767513837157,0.12922516,91254.0,91246.0,0.06575587]
[1767513837158,0.01095866,91252.0,91246.0,0.06575587]
[1767513837301,0.01095878,91251.0,91245.0,0.0109595]
[1767513837506,0.01095902,91249.0,91244.0,0.01095962]
[1767513837707,0.01095926,91247.0,91243.0,0.01095974]
[1767513837908,0.01095926,91247.0,91240.0,0.0109601]
[1767513837909,0.01000001,91243.0,91240.0,0.0109601]
[1767513838159,0.01000001,91243.0,91241.0,0.05479992]
[1767513838381,0.01095962,91244.0,91239.0,0.01096022]
[1767513838569,0.01095962,91244.0,91231.0,0.06872507]
[1767513838570,0.000999,91239.0,91236.0,0.01096058]
[1767513839007,0.11826674,91240.0,91237.0,0.01096046]
[1767513839483,0.11826674,91240.0,91237.0,0.06576268]
[1767513840187,0.11826674,91240.0,91237.0,0.01096046]
[1767513840493,0.11826674,91240.0,91237.0,0.06476366]
[1767513840793,0.11826674,91240.0,91238.0,0.05480138]
[1767513840966,0.00739454,91244.0,91242.0,0.05479932]
[1767513841172,0.08774982,91255.0,91248.0,0.01095914]
[1767513841368,0.0547965,91247.0,91240.0,0.0209601]
[1767513841533,0.01095902,91249.0,91242.0,0.05479897]
[1767513841888,0.05479875,91243.0,91240.0,0.01]
[1767513842254,0.05479875,91243.0,91232.0,0.01096106]
[1767513842255,0.05479978,91242.0,91234.0,0.06625832]
[1767513842516,0.01095986,91242.0,91238.0,0.01096034]
[1767513842873,0.022,91251.0,91246.0,0.04797962]
[1767513843084,0.06574982,91255.0,91250.0,0.0109589]
[1767513843290,0.01095854,91253.0,91249.0,0.01095902]
[1767513843509,0.01095866,91252.0,91247.0,0.01095926]
[1767513843692,0.01095854,91253.0,91248.0,0.01095914]
[1767513843877,0.15122516,91254.0,91251.0,0.01095878]
[1767513843878,0.14026674,91254.0,91251.0,0.01095878]
[1767513844082,0.14026674,91254.0,91250.0,0.0109589]
[1767513844282,0.01095854,91253.0,91248.0,0.06575485]
[1767513844683,0.06575151,91253.0,91248.0,0.01095914]
[1767513844899,0.06574702,91259.0,91253.0,0.000999]
[1767513845121,0.06574702,91259.0,91253.0,0.01195754]
[1767513845122,0.03295794,91258.0,91253.0,0.01195754]
[1767513845298,0.01095734,91263.0,91254.0,0.01086871]
[1767513845502,0.01095782,91259.0,91255.0,0.0109583]
[1767513845916,0.01095782,91259.0,91251.0,0.05479381]
[1767513846123,0.01095818,91256.0,91251.0,0.06575259]
[1767513846306,0.01095806,91257.0,91252.0,0.06575195]
[1767513846500,0.01095818,91256.0,91252.0,0.01095866]
[1767513846841,0.11826674,91255.0,91252.0,0.01095866]
[1767513847045,0.11826674,91255.0,91252.0,0.06575188]
[1767513847387,0.12922504,91255.0,91249.0,0.06575361]
[1767513847588,0.11826674,91255.0,91252.0,0.01095866]
[1767513847899,0.01095734,91263.0,91257.0,0.01095806]
[1767513848106,5.5e-05,91257.0,91255.0,0.01195729]
[1767513848450,5.5e-05,91257.0,91254.0,0.01095842]
[1767513848451,5.5e-05,91257.0,91254.0,0.0657503]
[1767513848614,5.5e-05,91257.0,91255.0,0.05479151]
[1767513848818,5.5e-05,91257.0,91253.0,0.01095854]
[1767513849035,0.01095794,91258.0,91254.0,0.01095842]
[1767513849219,0.03454839,91259.0,91254.0,0.01095842]
[1767513849439,0.06574771,91258.0,91253.0,0.01095854]
[1767513849866,0.06574697,91259.0,91253.0,0.01095854]
[1767513850071,0.01095794,91258.0,91254.0,0.01095842]
[1767513850270,0.0109577,91260.0,91258.0,0.000944]
[1767513850467,0.04584662,91258.0,91254.0,0.01095842]
[1767513850654,0.04584662,91258.0,91255.0,0.0109583]
[1767513851205,0.04584662,91258.0,91254.0,0.0657505]
[1767513851655,0.04584662,91258.0,91254.0,0.0656608]
[1767513851986,0.04584662,91258.0,91256.0,0.05479072]
[1767513852193,0.00060001,91258.0,91257.0,0.05479031]
[1767513852370,1e-08,91258.0,91257.0,0.05479031]
[1767513852551,1e-08,91258.0,91256.0,0.05479072]
[1767513852756,0.000999,91257.0,91256.0,0.05479072]
[1767513853382,0.02358513,91263.0,91257.0,0.01095806]
[1767513853561,0.000152,91265.0,91262.0,0.01095746]
[1767513853760,0.04539861,91265.0,91261.0,0.06574493]
[1767513853961,0.04539861,91265.0,91259.0,0.05478869]
[1767513854181,0.000152,91265.0,91259.0,0.05478869]
[1767513854399,0.0658952,91265.0,91260.0,0.05478849]
[1767513854588,0.0111091,91265.0,91261.0,0.01095758]
[1767513854969,0.01095722,91264.0,91258.0,0.06574762]
[1767513855175,0.01095722,91264.0,91260.0,0.0109577]
[1767513855372,0.0095511,91265.0,91261.0,0.01095758]
[1767513855719,0.022,91266.0,91265.0,0.000999]
[1767513855915,0.00099899,91265.0,91262.0,0.06574442]
[1767513856077,0.00099899,91265.0,91262.0,0.01095746]
[1767513856285,0.00099899,91265.0,91263.0,0.05478668]
[1767513856505,0.00099899,91265.0,91264.0,0.05478611]
[1767513857248,0.00099899,91265.0,91263.0,0.05478668]
[1767513857492,0.02210858,91266.0,91263.0,0.05893696]
[1767513857641,0.02210858,91266.0,91265.0,0.05478551]
[1767513857837,0.02210858,91266.0,91262.0,0.01095746]
[1767513858155,0.010999,91265.0,91262.0,0.04797962]
[1767513858358,0.0209571,91265.0,91260.0,0.1137258]
[1767513858566,0.01095734,91263.0,91260.0,0.04797962]
[1767513858768,0.01,91265.0,91261.0,0.01095758]
[1767513858914,0.01095722,91264.0,91260.0,0.11372582]
[1767513859262,0.0209571,91265.0,91260.0,0.11372582]
[1767513859512,0.01095722,91264.0,91260.0,0.0515422]
[1767513859643,0.06574336,91264.0,91260.0,0.0395855]
[1767513859846,0.0209571,91265.0,91261.0,0.01095758]
[1767513860281,0.01095722,91264.0,91260.0,0.10533153]
[1767513860882,0.06574297,91265.0,91260.0,0.10533153]
[1767513861041,0.0109571,91265.0,91261.0,0.01095758]
[1767513861446,0.06585081,91266.0,91261.0,0.06574518]
[1767513861646,0.01106556,91266.0,91262.0,0.01095746]
[1767513862415,0.06585056,91266.0,91261.0,0.06574518]
[1767513862595,0.01106556,91266.0,91262.0,0.01095746]
[1767513862987,0.01106556,91266.0,91262.0,0.06574477]
[1767513863184,0.21910148,91282.0,91267.0,0.04797962]
[1767513863564,0.06826674,91268.0,91266.0,0.04797962]
[1767513863768,0.06826674,91268.0,91266.0,0.10276448]
[1767513863931,0.06826674,91268.0,91266.0,0.04797962]
[1767513864314,0.06826674,91268.0,91266.0,0.1027643]
[1767513864533,0.06826674,91268.0,91267.0,0.05478431]
[1767513864744,0.11251435,91268.0,91267.0,0.05478431]
[1767513864943,0.06726774,91268.0,91267.0,0.05478431]
[1767513865151,0.05726774,91268.0,91267.0,0.05478431]
[1767513865610,0.25202765,91278.0,91265.0,0.0109571]
[1767513865611,0.07816215,91278.0,91265.0,0.0109571]
[1767513865807,0.01095578,91276.0,91272.0,0.01095626]
[1767513865964,0.04524661,91268.0,91266.0,0.01095698]
[1767513866169,0.04524661,91271.0,91270.0,0.05478249]
[1767513866756,0.04524661,91271.0,91266.0,0.01095698]
[1767513867039,0.000999,91270.0,91267.0,0.01095686]
[1767513867194,0.04524661,91271.0,91267.0,0.01095686]
[1767513867395,0.01095626,91272.0,91268.0,0.01095674]
[1767513868232,0.01095626,91272.0,91268.0,0.06574043]
[1767513869124,0.01095638,91271.0,91267.0,0.01095686]
[1767513869317,0.06573761,91272.0,91267.0,0.06574115]
[1767513869684,0.01095638,91271.0,91267.0,0.01095686]
[1767513870189,0.06573761,91272.0,91267.0,0.06574102]
[1767513870423,0.06573736,91273.0,91268.0,0.06574033]
[1767513870622,0.01095602,91274.0,91269.0,0.06573966]
[1767513870956,0.0001129,91275.0,91271.0,0.06009906]
[1767513871155,0.0001129,91275.0,91272.0,0.06009894]
[1767513871309,0.0001129,91275.0,91274.0,0.10392279]
[1767513871512,0.0001129,91275.0,91274.0,0.04914268]
[1767513872043,0.0001129,91275.0,91274.0,0.10392279]
[1767513873420,0.0001129,91275.0,91274.0,0.09652625]
[1767513874036,0.06573189,91280.0,91276.0,0.04634626]
[1767513874037,0.0109553,91280.0,91276.0,0.04634626]
[1767513874224,0.03291542,91279.0,91275.0,0.06573532]
[1767513874422,0.02196,91279.0,91275.0,0.0109559]
[1767513874651,0.000999,91275.0,91273.0,0.01095614]
[1767513874855,0.010999,91275.0,91273.0,0.06573648]
[1767513875093,0.010999,91275.0,91274.0,0.05478011]
[1767513875289,0.02196,91279.0,91275.0,0.06573516]
[1767513875496,0.02196,91279.0,91276.0,0.01095578]
[1767513877349,0.06573131,91281.0,91277.0,0.01095566]
[1767513877552,0.02196,91280.0,91277.0,0.06573392]
[1767513877887,0.0329153,91280.0,91276.0,0.06573455]
[1767513878242,0.05477001,91291.0,91286.0,0.04380479]
[1767513878530,0.02196,91292.0,91286.0,0.0528817]
[1767513878678,0.02196,91292.0,91287.0,0.05477228]
[1767513878879,0.0001514,91293.0,91287.0,0.05477228]
[1767513879080,0.010999,91287.0,91282.0,0.01095506]
[1767513879377,0.11826674,91283.0,91282.0,0.06573021]